[Event "*** Titled Tuesday Blitz"]
[Site "Chess.com"]
[Date "2020.05.19"]
[Round "6"]
[White "CuattroPrincesses"]
[Black "mamonika"]
[Result "1-0"]
[WhiteElo "2250"]
[BlackElo "1969"]
[TimeControl "180+1"]
[EndTime "13:09:14 PDT"]
[Termination "CuattroPrincesses won on time"]

1. e4 {[%clk 0:03:00.9]} 1... c5 {[%clk 0:02:59.9]} 2. Nf3 {[%clk 0:03:00.8]}
2... e6 {[%clk 0:02:59.4]} 3. d4 {[%clk 0:03:01]} 3... cxd4 {[%clk 0:03:00.3]}
4. Nxd4 {[%clk 0:03:01.5]} 4... Nf6 {[%clk 0:03:00.3]} 5. Nc3 {[%clk 0:03:02]}
5... d6 {[%clk 0:03:00.2]} 6. f3 {[%clk 0:03:01.4]} 6... Nc6 {[%clk 0:02:58.4]}
7. Be3 {[%clk 0:03:01.9]} 7... Be7 {[%clk 0:02:56.5]} 8. Qd2 {[%clk 0:03:02.4]}
8... O-O {[%clk 0:02:56.5]} 9. O-O-O {[%clk 0:03:02.9]} 9... Qa5 {[%clk
0:02:35.9]} 10. Kb1 {[%clk 0:03:00.7]} 10... Re8 {[%clk 0:02:28.1]} 11. Nxc6
{[%clk 0:02:48.3]} 11... bxc6 {[%clk 0:02:28.1]} 12. Nd5 {[%clk 0:02:42.5]}
12... Qxd2 {[%clk 0:02:23.7]} 13. Nxe7+ {[%clk 0:02:42]} 13... Rxe7 {[%clk
0:02:23.2]} 14. Rxd2 {[%clk 0:02:42.6]} 14... d5 {[%clk 0:02:15.8]} 15. Bc5
{[%clk 0:02:26.4]} 15... Rb7 {[%clk 0:02:09.5]} 16. e5 {[%clk 0:02:20.6]} 16...
Nd7 {[%clk 0:02:06.1]} 17. Bd6 {[%clk 0:02:19.9]} 17... c5 {[%clk 0:02:01.1]}
18. c4 {[%clk 0:02:12.4]} 18... d4 {[%clk 0:01:55.8]} 19. Bd3 {[%clk 0:02:12.1]}
19... a5 {[%clk 0:01:48.3]} 20. Be4 {[%clk 0:02:11.2]} 20... Rba7 {[%clk
0:01:47.6]} 21. Bc6 {[%clk 0:01:58.8]} 21... Ra6 {[%clk 0:01:28.7]} 22. Bxd7
{[%clk 0:01:48.1]} 22... Bxd7 {[%clk 0:01:28.2]} 23. Bxc5 {[%clk 0:01:48.6]}
23... Rc6 {[%clk 0:01:12.5]} 24. Bxd4 {[%clk 0:01:37.6]} 24... Rxc4 {[%clk
0:01:07]} 25. Bc3 {[%clk 0:01:33.4]} 25... Be8 {[%clk 0:01:01.5]} 26. Rhd1
{[%clk 0:01:31.6]} 26... Kf8 {[%clk 0:00:55.7]} 27. Rd8 {[%clk 0:01:18.6]} 27...
Rxd8 {[%clk 0:00:54.6]} 28. Rxd8 {[%clk 0:01:19.5]} 28... Ke7 {[%clk 0:00:54.8]}
29. Ra8 {[%clk 0:01:19.3]} 29... a4 {[%clk 0:00:55]} 30. a3 {[%clk 0:01:15.9]}
30... Rc7 {[%clk 0:00:32.1]} 31. Bb4+ {[%clk 0:01:06.6]} 31... Kd7 {[%clk
0:00:27.7]} 32. Rxa4 {[%clk 0:01:04.8]} 32... f6 {[%clk 0:00:26.5]} 33. Ra5
{[%clk 0:00:51.1]} 33... fxe5 {[%clk 0:00:20.4]} 34. Rxe5 {[%clk 0:00:48.8]}
34... Bg6+ {[%clk 0:00:20.6]} 35. Ka2 {[%clk 0:00:47.4]} 35... Bd3 {[%clk
0:00:13.9]} 36. a4 {[%clk 0:00:42.3]} 36... Bc4+ {[%clk 0:00:09.1]} 37. Ka3
{[%clk 0:00:37.1]} 37... Bd5 {[%clk 0:00:08.5]} 38. Re2 {[%clk 0:00:34.5]} 38...
Bc4 {[%clk 0:00:03.8]} 39. Rd2+ {[%clk 0:00:33.7]} 39... Ke8 {[%clk 0:00:04]}
40. Bc3 {[%clk 0:00:32.5]} 40... Kf7 {[%clk 0:00:03.3]} 41. a5 {[%clk
0:00:32.1]} 41... Ra7 {[%clk 0:00:02.4]} 42. Rd6 {[%clk 0:00:30.5]} 42... Bd5
{[%clk 0:00:01.5]} 43. Kb4 {[%clk 0:00:29.8]} 43... Ke7 {[%clk 0:00:01.6]} 44.
Rb6 {[%clk 0:00:29.2]} 1-0

[Event "*** Titled Tuesday Blitz"]
[Site "Chess.com"]
[Date "2020.05.19"]
[Round "6"]
[White "OK97"]
[Black "Aikiigm"]
[Result "0-1"]
[WhiteElo "2732"]
[BlackElo "2540"]
[TimeControl "180+1"]
[EndTime "13:09:15 PDT"]
[Termination "Aikiigm won on time"]

1. d4 {[%clk 0:03:00.9]} 1... e6 {[%clk 0:02:55.4]} 2. c4 {[%clk 0:02:57.7]}
2... b6 {[%clk 0:02:56.3]} 3. e4 {[%clk 0:02:56.7]} 3... Bb7 {[%clk 0:02:57.2]}
4. Bd3 {[%clk 0:02:56.1]} 4... Bb4+ {[%clk 0:02:56]} 5. Kf1 {[%clk 0:02:56.4]}
5... Be7 {[%clk 0:02:50.5]} 6. Nc3 {[%clk 0:02:53]} 6... c5 {[%clk 0:02:50.6]}
7. d5 {[%clk 0:02:52.3]} 7... exd5 {[%clk 0:02:50.8]} 8. exd5 {[%clk 0:02:40.3]}
8... Nf6 {[%clk 0:02:49.7]} 9. Nf3 {[%clk 0:02:37.9]} 9... d6 {[%clk 0:02:49.7]}
10. g3 {[%clk 0:02:35.2]} 10... O-O {[%clk 0:02:50.3]} 11. Kg2 {[%clk
0:02:35.4]} 11... a6 {[%clk 0:02:51.2]} 12. a4 {[%clk 0:02:34.9]} 12... Re8
{[%clk 0:02:50.8]} 13. Re1 {[%clk 0:02:34.1]} 13... Nbd7 {[%clk 0:02:50.9]} 14.
Bf4 {[%clk 0:02:24.2]} 14... Qc7 {[%clk 0:02:48.8]} 15. Nd2 {[%clk 0:02:12.3]}
15... Bf8 {[%clk 0:02:48.7]} 16. Nde4 {[%clk 0:01:58.9]} 16... Nxe4 {[%clk
0:02:45.7]} 17. Bxe4 {[%clk 0:01:48.4]} 17... Nf6 {[%clk 0:02:45.6]} 18. Bd3
{[%clk 0:01:41.1]} 18... h6 {[%clk 0:02:42.7]} 19. Qd2 {[%clk 0:01:28.9]} 19...
Qd7 {[%clk 0:02:38.2]} 20. b3 {[%clk 0:01:11.9]} 20... Rad8 {[%clk 0:02:36.3]}
21. Kg1 {[%clk 0:01:07.6]} 21... Bc8 {[%clk 0:02:35.9]} 22. Bf1 {[%clk
0:01:04.5]} 22... Qg4 {[%clk 0:02:24.5]} 23. a5 {[%clk 0:01:00.4]} 23... bxa5
{[%clk 0:02:23.5]} 24. Rxa5 {[%clk 0:00:55.1]} 24... Rxe1 {[%clk 0:02:20.1]} 25.
Qxe1 {[%clk 0:00:56]} 25... Re8 {[%clk 0:02:20.3]} 26. Qd2 {[%clk 0:00:55.8]}
26... Qh5 {[%clk 0:02:19.7]} 27. Bg2 {[%clk 0:00:32.4]} 27... Ng4 {[%clk
0:02:12.4]} 28. h3 {[%clk 0:00:32.6]} 28... Ne5 {[%clk 0:02:12.3]} 29. g4 {[%clk
0:00:33.1]} 29... Qg6 {[%clk 0:02:07.2]} 30. Ra1 {[%clk 0:00:28.3]} 30... f5
{[%clk 0:02:06.2]} 31. g5 {[%clk 0:00:16]} 31... Kh7 {[%clk 0:01:51.5]} 32. Kh1
{[%clk 0:00:15.3]} 32... hxg5 {[%clk 0:01:35]} 33. Bxg5 {[%clk 0:00:16.2]} 33...
Be7 {[%clk 0:01:32.2]} 34. Bxe7 {[%clk 0:00:15.3]} 34... Rxe7 {[%clk 0:01:31.4]}
35. Rg1 {[%clk 0:00:15.5]} 35... Qh6 {[%clk 0:01:28.3]} 36. Qxh6+ {[%clk
0:00:09.9]} 36... Kxh6 {[%clk 0:01:29.2]} 37. Ra1 {[%clk 0:00:06.9]} 37... Ng6
{[%clk 0:01:24.8]} 38. Kg1 {[%clk 0:00:06.6]} 38... Nf4 {[%clk 0:01:24.6]} 39.
Bf1 {[%clk 0:00:07.1]} 39... g5 {[%clk 0:01:23.6]} 40. Ra4 {[%clk 0:00:05.7]}
40... Kg6 {[%clk 0:01:20.2]} 41. b4 {[%clk 0:00:05.8]} 41... cxb4 {[%clk
0:01:20.2]} 42. Rxb4 {[%clk 0:00:06.7]} 42... Kf6 {[%clk 0:01:20.6]} 43. Rb6
{[%clk 0:00:07.1]} 43... Ke5 {[%clk 0:01:20.5]} 44. c5 {[%clk 0:00:07.7]} 44...
dxc5 {[%clk 0:01:18.8]} 45. d6 {[%clk 0:00:07.3]} 45... Rd7 {[%clk 0:01:16.2]}
46. Rc6 {[%clk 0:00:07.1]} 46... Rd8 {[%clk 0:01:12.9]} 47. Na4 {[%clk
0:00:04.5]} 47... Bb7 {[%clk 0:01:03]} 48. Rxc5+ {[%clk 0:00:04.9]} 48... Kf6
{[%clk 0:01:01.5]} 49. Rc7 {[%clk 0:00:03.7]} 49... Bd5 {[%clk 0:00:58.8]} 50.
d7 {[%clk 0:00:03.8]} 50... Ne6 {[%clk 0:00:57.7]} 51. Nb6 {[%clk 0:00:04.4]}
51... Nxc7 {[%clk 0:00:57]} 0-1

[Event "*** Titled Tuesday Blitz"]
[Site "Chess.com"]
[Date "2020.05.19"]
[Round "6"]
[White "GMJustin"]
[Black "Lucas_Tomiello"]
[Result "1-0"]
[WhiteElo "2338"]
[BlackElo "2175"]
[TimeControl "180+1"]
[EndTime "13:09:19 PDT"]
[Termination "GMJustin won by resignation"]

1. d4 {[%clk 0:02:42.2]} 1... Nf6 {[%clk 0:02:59.8]} 2. c4 {[%clk 0:02:40.9]}
2... g6 {[%clk 0:02:59.9]} 3. Nc3 {[%clk 0:02:40.3]} 3... Bg7 {[%clk 0:02:59.4]}
4. e4 {[%clk 0:02:39.4]} 4... d6 {[%clk 0:02:59.9]} 5. Be2 {[%clk 0:02:30.7]}
5... O-O {[%clk 0:02:59.3]} 6. Be3 {[%clk 0:02:28.9]} 6... c6 {[%clk 0:02:59.3]}
7. Nf3 {[%clk 0:02:23.4]} 7... a6 {[%clk 0:02:58.7]} 8. e5 {[%clk 0:02:06.9]}
8... Nfd7 {[%clk 0:02:53.1]} 9. exd6 {[%clk 0:02:01.6]} 9... exd6 {[%clk
0:02:52.3]} 10. d5 {[%clk 0:01:50.3]} 10... c5 {[%clk 0:02:48.4]} 11. O-O {[%clk
0:01:45.8]} 11... Re8 {[%clk 0:02:42]} 12. Qd2 {[%clk 0:01:41.1]} 12... Nf6
{[%clk 0:02:40.4]} 13. h3 {[%clk 0:01:33.3]} 13... Ne4 {[%clk 0:02:37.1]} 14.
Nxe4 {[%clk 0:01:32.8]} 14... Rxe4 {[%clk 0:02:38]} 15. Bd3 {[%clk 0:01:30.7]}
15... Re8 {[%clk 0:02:36.4]} 16. Rab1 {[%clk 0:01:28.1]} 16... Nd7 {[%clk
0:02:30.9]} 17. a3 {[%clk 0:01:21.4]} 17... a5 {[%clk 0:02:20.2]} 18. b4 {[%clk
0:01:17.1]} 18... axb4 {[%clk 0:02:19.7]} 19. axb4 {[%clk 0:01:17.3]} 19... cxb4
{[%clk 0:02:18.9]} 20. Qxb4 {[%clk 0:01:15.7]} 20... Qc7 {[%clk 0:02:10.3]} 21.
Nd4 {[%clk 0:00:58.8]} 21... Nc5 {[%clk 0:01:54.7]} 22. Nb5 {[%clk 0:00:57.6]}
22... Qe7 {[%clk 0:01:40.7]} 23. Bc2 {[%clk 0:00:41.8]} 23... Ra2 {[%clk
0:01:23.6]} 24. Nxd6 {[%clk 0:00:34]} 24... Qxd6 {[%clk 0:01:03.8]} 25. Bxc5
{[%clk 0:00:33.5]} 25... Qf4 {[%clk 0:01:03.2]} 26. Rfe1 {[%clk 0:00:25.4]}
26... Be5 {[%clk 0:01:01]} 27. g3 {[%clk 0:00:20.6]} 27... Qf6 {[%clk
0:00:40.8]} 28. Qb3 {[%clk 0:00:20.3]} 28... Ra5 {[%clk 0:00:27.7]} 29. Bb4
{[%clk 0:00:17.4]} 29... Ra6 {[%clk 0:00:27.8]} 30. Bc3 {[%clk 0:00:13.6]} 30...
Bxh3 {[%clk 0:00:25.5]} 31. Bxe5 {[%clk 0:00:12.4]} 31... Rxe5 {[%clk
0:00:21.3]} 32. Rxe5 {[%clk 0:00:11.9]} 32... Qxe5 {[%clk 0:00:21.3]} 33. Qxb7
{[%clk 0:00:12]} 33... Rf6 {[%clk 0:00:20.7]} 34. Qb8+ {[%clk 0:00:12]} 34...
Qxb8 {[%clk 0:00:20.8]} 35. Rxb8+ {[%clk 0:00:12.3]} 35... Kg7 {[%clk
0:00:20.6]} 36. c5 {[%clk 0:00:12.6]} 36... Rf3 {[%clk 0:00:20.3]} 37. Be4
{[%clk 0:00:11.7]} 37... Rc3 {[%clk 0:00:20]} 38. c6 {[%clk 0:00:11.2]} 38...
Rc1+ {[%clk 0:00:17.6]} 39. Kh2 {[%clk 0:00:10.9]} 39... Bg4 {[%clk 0:00:17.6]}
40. d6 {[%clk 0:00:11]} 40... Be6 {[%clk 0:00:13.2]} 41. d7 {[%clk 0:00:10.5]}
41... Rd1 {[%clk 0:00:13]} 42. d8=Q {[%clk 0:00:09.4]} 1-0

[Event "*** Titled Tuesday Blitz"]
[Site "Chess.com"]
[Date "2020.05.19"]
[Round "6"]
[White "savagemedusa"]
[Black "bmt011"]
[Result "0-1"]
[WhiteElo "2243"]
[BlackElo "2057"]
[TimeControl "180+1"]
[EndTime "13:09:20 PDT"]
[Termination "bmt011 won by checkmate"]

1. d4 {[%clk 0:03:00.9]} 1... Nf6 {[%clk 0:02:40.4]} 2. c4 {[%clk 0:02:47.6]}
2... e6 {[%clk 0:02:40.1]} 3. Nf3 {[%clk 0:02:41.9]} 3... Bb4+ {[%clk
0:02:40.1]} 4. Bd2 {[%clk 0:02:27.4]} 4... a5 {[%clk 0:02:37.1]} 5. Bxb4 {[%clk
0:02:20.5]} 5... axb4 {[%clk 0:02:36.9]} 6. Qd3 {[%clk 0:02:11.4]} 6... d5
{[%clk 0:02:31.1]} 7. c5 {[%clk 0:01:58.2]} 7... O-O {[%clk 0:02:25]} 8. g3
{[%clk 0:01:55.1]} 8... b6 {[%clk 0:02:06.2]} 9. cxb6 {[%clk 0:01:39.6]} 9... c6
{[%clk 0:02:06.4]} 10. Nbd2 {[%clk 0:01:32.7]} 10... Qxb6 {[%clk 0:02:05.2]} 11.
Bg2 {[%clk 0:01:33.3]} 11... Nbd7 {[%clk 0:01:54.4]} 12. h3 {[%clk 0:01:20.1]}
12... Re8 {[%clk 0:01:50.6]} 13. Ne5 {[%clk 0:01:17.1]} 13... c5 {[%clk
0:01:44.3]} 14. dxc5 {[%clk 0:00:58.2]} 14... Nxc5 {[%clk 0:01:36.6]} 15. Qe3
{[%clk 0:00:52.2]} 15... b3 {[%clk 0:00:48.8]} 16. Nxb3 {[%clk 0:00:39.4]} 16...
Qb4+ {[%clk 0:00:45.5]} 17. Qd2 {[%clk 0:00:36.6]} 17... Qxb3 {[%clk 0:00:34]}
18. O-O {[%clk 0:00:29.2]} 18... Rxa2 {[%clk 0:00:31.6]} 19. Rxa2 {[%clk
0:00:22.8]} 19... Qxa2 {[%clk 0:00:31.4]} 20. Qg5 {[%clk 0:00:20.9]} 20... h6
{[%clk 0:00:28.3]} 21. Qh4 {[%clk 0:00:20.2]} 21... Qxb2 {[%clk 0:00:25.3]} 22.
f4 {[%clk 0:00:20]} 22... Qxe2 {[%clk 0:00:24.2]} 23. Bf3 {[%clk 0:00:17.7]}
23... Qe3+ {[%clk 0:00:22.8]} 24. Kh1 {[%clk 0:00:17.4]} 24... Ba6 {[%clk
0:00:23.1]} 25. Ra1 {[%clk 0:00:12.7]} 25... Nfe4 {[%clk 0:00:20.8]} 26. Kh2
{[%clk 0:00:10.2]} 26... Qf2+ {[%clk 0:00:20.3]} 27. Bg2 {[%clk 0:00:09.2]}
27... Be2 {[%clk 0:00:16.7]} 28. Ra7 {[%clk 0:00:08.8]} 28... Bf3 {[%clk
0:00:15.6]} 29. Nxf3 {[%clk 0:00:08.9]} 29... Nd2 {[%clk 0:00:13.4]} 30. Nxd2
{[%clk 0:00:08.1]} 30... Qxd2 {[%clk 0:00:12.5]} 31. Qh5 {[%clk 0:00:08.7]}
31... g6 {[%clk 0:00:11.6]} 32. Qxh6 {[%clk 0:00:08.1]} 32... Nd3 {[%clk
0:00:10.9]} 33. Qh4 {[%clk 0:00:07.7]} 33... Nf2 {[%clk 0:00:08.5]} 34. Qf6
{[%clk 0:00:07.9]} 34... Rf8 {[%clk 0:00:08.8]} 35. Re7 {[%clk 0:00:07.3]} 35...
Qc2 {[%clk 0:00:06.8]} 36. g4 {[%clk 0:00:08.2]} 36... Nd3 {[%clk 0:00:04.2]}
37. Qg5 {[%clk 0:00:08.3]} 37... Ne1 {[%clk 0:00:03.9]} 38. Rd7 {[%clk
0:00:08.5]} 38... Qxg2# {[%clk 0:00:03.9]} 0-1

[Event "*** Titled Tuesday Blitz"]
[Site "Chess.com"]
[Date "2020.05.19"]
[Round "6"]
[White "fridaywins"]
[Black "Noam_Vitenberg"]
[Result "1-0"]
[WhiteElo "2256"]
[BlackElo "2414"]
[TimeControl "180+1"]
[EndTime "13:09:21 PDT"]
[Termination "fridaywins won on time"]

1. e4 {[%clk 0:03:00.9]} 1... e5 {[%clk 0:02:58.1]} 2. Nf3 {[%clk 0:03:00]} 2...
Nc6 {[%clk 0:02:57.9]} 3. Bb5 {[%clk 0:02:58]} 3... a6 {[%clk 0:02:56.4]} 4. Ba4
{[%clk 0:02:56.7]} 4... Nf6 {[%clk 0:02:55.5]} 5. O-O {[%clk 0:02:52.5]} 5...
Be7 {[%clk 0:02:54.3]} 6. Re1 {[%clk 0:02:49.8]} 6... b5 {[%clk 0:02:53.1]} 7.
Bb3 {[%clk 0:02:49.8]} 7... O-O {[%clk 0:02:50.8]} 8. a4 {[%clk 0:02:49.8]} 8...
Bb7 {[%clk 0:02:46.6]} 9. axb5 {[%clk 0:02:44.3]} 9... axb5 {[%clk 0:02:45.2]}
10. Rxa8 {[%clk 0:02:43.9]} 10... Qxa8 {[%clk 0:02:41.8]} 11. Nc3 {[%clk
0:02:43.9]} 11... b4 {[%clk 0:02:22.4]} 12. Nd5 {[%clk 0:02:43.5]} 12... Bd8
{[%clk 0:02:12]} 13. d3 {[%clk 0:02:42.2]} 13... d6 {[%clk 0:02:08.1]} 14. Bg5
{[%clk 0:02:36.3]} 14... Nxd5 {[%clk 0:02:07.3]} 15. Bxd5 {[%clk 0:02:29.6]}
15... Ne7 {[%clk 0:01:55.1]} 16. Bb3 {[%clk 0:02:17]} 16... Ng6 {[%clk
0:01:51.3]} 17. h4 {[%clk 0:02:07.6]} 17... Kh8 {[%clk 0:01:47.3]} 18. h5 {[%clk
0:02:02]} 18... Nf4 {[%clk 0:01:43.9]} 19. h6 {[%clk 0:01:53]} 19... gxh6 {[%clk
0:01:35.3]} 20. Bxh6 {[%clk 0:01:52.8]} 20... Rg8 {[%clk 0:01:30.9]} 21. Bxf4
{[%clk 0:01:43.2]} 21... exf4 {[%clk 0:01:31.8]} 22. Qd2 {[%clk 0:01:37.8]}
22... Rg4 {[%clk 0:01:28.2]} 23. Qxb4 {[%clk 0:01:31.9]} 23... Bf6 {[%clk
0:01:10]} 24. Nh2 {[%clk 0:01:11.5]} 24... Rg7 {[%clk 0:01:05.5]} 25. c3 {[%clk
0:01:04.2]} 25... c5 {[%clk 0:00:59.9]} 26. Qb6 {[%clk 0:00:52.5]} 26... Be7
{[%clk 0:00:34.6]} 27. Bd5 {[%clk 0:00:43.2]} 27... Bxd5 {[%clk 0:00:29.8]} 28.
exd5 {[%clk 0:00:42.6]} 28... Qxd5 {[%clk 0:00:30]} 29. f3 {[%clk 0:00:39.3]}
29... Qg5 {[%clk 0:00:15.5]} 30. Re2 {[%clk 0:00:37.3]} 30... h5 {[%clk
0:00:14.2]} 31. Qc6 {[%clk 0:00:30.6]} 31... h4 {[%clk 0:00:13.7]} 32. Qc8+
{[%clk 0:00:29.8]} 32... Kh7 {[%clk 0:00:12.8]} 33. Ng4 {[%clk 0:00:26.2]} 33...
f5 {[%clk 0:00:09.8]} 34. Nh2 {[%clk 0:00:23.8]} 34... h3 {[%clk 0:00:10.1]} 35.
Qe6 {[%clk 0:00:20.3]} 35... hxg2 {[%clk 0:00:08.8]} 36. Rf2 {[%clk 0:00:19.7]}
36... Bf6 {[%clk 0:00:06.2]} 37. Qe2 {[%clk 0:00:19.1]} 37... Qh4 {[%clk
0:00:03.8]} 38. Rxg2 {[%clk 0:00:19.8]} 38... Rxg2+ {[%clk 0:00:03.6]} 39. Qxg2
{[%clk 0:00:19.8]} 39... Qg3 {[%clk 0:00:04.1]} 40. Nf1 {[%clk 0:00:18.8]} 40...
Qe1 {[%clk 0:00:04]} 41. Qh3+ {[%clk 0:00:18.6]} 41... Kg6 {[%clk 0:00:03.2]}
42. Qg2+ {[%clk 0:00:18.4]} 1-0

[Event "*** Titled Tuesday Blitz"]
[Site "Chess.com"]
[Date "2020.05.19"]
[Round "6"]
[White "Indianlad"]
[Black "KuzubovYuriy"]
[Result "1-0"]
[WhiteElo "2940"]
[BlackElo "2702"]
[TimeControl "180+1"]
[EndTime "13:09:23 PDT"]
[Termination "Indianlad won by resignation"]

1. Nf3 {[%clk 0:03:00.9]} 1... d5 {[%clk 0:02:59.9]} 2. e3 {[%clk 0:03:00.5]}
2... Nf6 {[%clk 0:02:50.7]} 3. c4 {[%clk 0:03:00.5]} 3... e6 {[%clk 0:02:48.2]}
4. Nc3 {[%clk 0:03:00.8]} 4... Bb4 {[%clk 0:02:40.1]} 5. Qa4+ {[%clk 0:02:55.5]}
5... Nc6 {[%clk 0:02:39.8]} 6. Ne5 {[%clk 0:02:55.8]} 6... a5 {[%clk 0:02:29.6]}
7. Nxc6 {[%clk 0:02:50.2]} 7... bxc6 {[%clk 0:02:29.4]} 8. a3 {[%clk 0:02:31.9]}
8... Bxc3 {[%clk 0:02:22.9]} 9. bxc3 {[%clk 0:02:32.8]} 9... O-O {[%clk
0:02:21.2]} 10. Be2 {[%clk 0:02:25.5]} 10... c5 {[%clk 0:02:03.3]} 11. O-O
{[%clk 0:02:17.8]} 11... Ba6 {[%clk 0:01:55.6]} 12. d4 {[%clk 0:02:08.1]} 12...
Qd7 {[%clk 0:01:48.8]} 13. Qc2 {[%clk 0:02:03.4]} 13... Bxc4 {[%clk 0:01:40.3]}
14. Bxc4 {[%clk 0:02:03.4]} 14... dxc4 {[%clk 0:01:41.2]} 15. a4 {[%clk
0:02:03]} 15... Rfb8 {[%clk 0:01:25.6]} 16. Ba3 {[%clk 0:02:03.2]} 16... Qc6
{[%clk 0:00:50.2]} 17. Rfb1 {[%clk 0:01:52.6]} 17... cxd4 {[%clk 0:00:34.7]} 18.
cxd4 {[%clk 0:01:53.5]} 18... Nd5 {[%clk 0:00:31.7]} 19. Bc5 {[%clk 0:01:53]}
19... Nb6 {[%clk 0:00:20.1]} 20. h4 {[%clk 0:01:48.6]} 20... h6 {[%clk
0:00:19.7]} 21. Rb5 {[%clk 0:01:47]} 21... Nd7 {[%clk 0:00:18.3]} 22. Qxc4
{[%clk 0:01:38.2]} 22... Rxb5 {[%clk 0:00:18.3]} 23. axb5 {[%clk 0:01:38.3]}
23... Qd5 {[%clk 0:00:17.7]} 24. Qxd5 {[%clk 0:01:30.8]} 24... exd5 {[%clk
0:00:18.6]} 25. Ba3 {[%clk 0:01:31.4]} 25... Rb8 {[%clk 0:00:17.6]} 26. Rc1
{[%clk 0:01:29.3]} 26... Rxb5 {[%clk 0:00:17.5]} 27. Rxc7 {[%clk 0:01:29.8]}
27... Nb6 {[%clk 0:00:17.3]} 28. Bc5 {[%clk 0:01:21]} 28... Nc4 {[%clk
0:00:16.4]} 29. Rc8+ {[%clk 0:01:21.2]} 29... Kh7 {[%clk 0:00:16.2]} 30. Ra8
{[%clk 0:01:21]} 30... Rb1+ {[%clk 0:00:15]} 31. Kh2 {[%clk 0:01:21.4]} 31...
Rb2 {[%clk 0:00:15.3]} 32. Kg3 {[%clk 0:01:21.1]} 32... Nd2 {[%clk 0:00:15.5]}
33. f3 {[%clk 0:01:19.8]} 33... Nf1+ {[%clk 0:00:14.6]} 34. Kf4 {[%clk
0:01:20.4]} 34... Re2 {[%clk 0:00:14.3]} 35. e4 {[%clk 0:01:15.9]} 35... dxe4
{[%clk 0:00:14]} 36. fxe4 {[%clk 0:01:16.8]} 36... Nd2 {[%clk 0:00:14.5]} 37.
Re8 {[%clk 0:01:13.1]} 37... a4 {[%clk 0:00:14]} 38. d5 {[%clk 0:01:13.2]} 38...
Nb3 {[%clk 0:00:12.8]} 39. Bb4 {[%clk 0:01:06.8]} 39... Nc1 {[%clk 0:00:12.8]}
40. d6 {[%clk 0:01:03.2]} 40... Nd3+ {[%clk 0:00:13.2]} 41. Kf3 {[%clk
0:01:03.8]} 41... Rf2+ {[%clk 0:00:13.6]} 42. Ke3 {[%clk 0:01:04]} 42... Nxb4
{[%clk 0:00:11.8]} 43. Kxf2 {[%clk 0:01:03.2]} 43... a3 {[%clk 0:00:09.1]} 44.
d7 {[%clk 0:01:01.4]} 44... Nd3+ {[%clk 0:00:08.4]} 45. Ke3 {[%clk 0:00:52.8]}
45... a2 {[%clk 0:00:07.5]} 46. Ra8 {[%clk 0:00:53.1]} 46... Ne5 {[%clk
0:00:07]} 47. d8=Q {[%clk 0:00:52.3]} 1-0

[Event "*** Titled Tuesday Blitz"]
[Site "Chess.com"]
[Date "2020.05.19"]
[Round "6"]
[White "LiemLe"]
[Black "swayamsm"]
[Result "1-0"]
[WhiteElo "2955"]
[BlackElo "2649"]
[TimeControl "180+1"]
[EndTime "13:09:23 PDT"]
[Termination "LiemLe won by resignation"]

1. Nf3 {[%clk 0:03:00.9]} 1... Nf6 {[%clk 0:02:59.2]} 2. c4 {[%clk 0:03:01]}
2... e6 {[%clk 0:02:55.8]} 3. Nc3 {[%clk 0:02:59.1]} 3... d5 {[%clk 0:02:55.9]}
4. d4 {[%clk 0:02:59.7]} 4... Bb4 {[%clk 0:02:54.7]} 5. cxd5 {[%clk 0:02:59.3]}
5... exd5 {[%clk 0:02:54.3]} 6. Bf4 {[%clk 0:02:59.7]} 6... O-O {[%clk
0:02:52.5]} 7. e3 {[%clk 0:02:59.9]} 7... Ne4 {[%clk 0:02:51.8]} 8. Qc2 {[%clk
0:02:51.8]} 8... c5 {[%clk 0:02:27.9]} 9. Bd3 {[%clk 0:02:50.5]} 9... Bf5 {[%clk
0:02:24.9]} 10. dxc5 {[%clk 0:02:26.2]} 10... Nd7 {[%clk 0:02:21.6]} 11. Nd4
{[%clk 0:02:16.6]} 11... Bg6 {[%clk 0:02:18.9]} 12. O-O {[%clk 0:02:08.8]} 12...
Ndxc5 {[%clk 0:02:06.2]} 13. Bxe4 {[%clk 0:02:07]} 13... dxe4 {[%clk 0:02:00.5]}
14. Bg3 {[%clk 0:01:36.1]} 14... Rc8 {[%clk 0:01:57.9]} 15. a3 {[%clk
0:01:27.2]} 15... Bxc3 {[%clk 0:01:54.4]} 16. Qxc3 {[%clk 0:01:28.1]} 16... Nd3
{[%clk 0:01:47.2]} 17. Qb3 {[%clk 0:01:27.9]} 17... Qb6 {[%clk 0:01:45.5]} 18.
Qxb6 {[%clk 0:01:26.4]} 18... axb6 {[%clk 0:01:46.4]} 19. b3 {[%clk 0:01:21.5]}
19... Rc3 {[%clk 0:01:45]} 20. a4 {[%clk 0:01:10.9]} 20... Rfc8 {[%clk
0:01:41.8]} 21. h4 {[%clk 0:01:08.4]} 21... R8c5 {[%clk 0:01:21.4]} 22. b4
{[%clk 0:00:54.5]} 22... Nxb4 {[%clk 0:01:00.6]} 23. Bd6 {[%clk 0:00:51.2]}
23... R5c4 {[%clk 0:01:00.9]} 24. Nb5 {[%clk 0:00:49.3]} 24... Rd3 {[%clk
0:00:59.1]} 25. Na3 {[%clk 0:00:46]} 25... Rxa3 {[%clk 0:00:24.6]} 26. Rxa3
{[%clk 0:00:46.9]} 26... Nd3 {[%clk 0:00:20.8]} 27. Rb1 {[%clk 0:00:45.1]} 27...
Rc6 {[%clk 0:00:20.5]} 28. Bg3 {[%clk 0:00:43.7]} 28... h6 {[%clk 0:00:20.4]}
29. Rab3 {[%clk 0:00:43.7]} 29... Rc2 {[%clk 0:00:16.4]} 30. Rxb6 {[%clk
0:00:42.4]} 30... Nc5 {[%clk 0:00:16.8]} 31. a5 {[%clk 0:00:37.8]} 31... Kh7
{[%clk 0:00:16.6]} 32. R6b5 {[%clk 0:00:32.3]} 32... f5 {[%clk 0:00:14.1]} 33.
Be5 {[%clk 0:00:27.9]} 33... Bh5 {[%clk 0:00:12.7]} 34. Bd4 {[%clk 0:00:26.3]}
34... Ne6 {[%clk 0:00:11.8]} 35. Be5 {[%clk 0:00:20.2]} 35... Nc5 {[%clk
0:00:11.1]} 36. R1b2 {[%clk 0:00:18.1]} 36... Rc1+ {[%clk 0:00:10.8]} 37. Kh2
{[%clk 0:00:18.3]} 37... Nd3 {[%clk 0:00:11.1]} 38. Ra2 {[%clk 0:00:17]} 38...
Nc5 {[%clk 0:00:07.3]} 39. Bd4 {[%clk 0:00:16.7]} 39... Ne6 {[%clk 0:00:07.7]}
40. Rxf5 {[%clk 0:00:16.5]} 40... Be2 {[%clk 0:00:06.3]} 41. Rxe2 {[%clk
0:00:15.8]} 41... Nxd4 {[%clk 0:00:06.9]} 42. exd4 {[%clk 0:00:16.7]} 1-0